{"text_format":"3","workbook":"xlsx","n_sheets":4,"sheets":["Minor Asset List","2020 2021","Minor Old","Sheet2"],"not_rendered":{"images":2,"external_links":2,"defined_names":2},"read":"whole","date_system":"1900"}

{"sheet":"Minor Asset List","index":0,"n_rows":329,"n_cols":15,"rows_kept":329}
[]
[]
[]
[{"$nulls":5},"Minor Assets"]
[]
[]
[]
[]
[]
[]
["Number","Asset ID","Descr","Supplier","Acq Date","Serial ID","Custodian","Location","Year","Period","Category","Cost","Condition","Verify Date","Verified By"]
[1,"ASA1080","Dell Ultra  sharp 24",null,"2019-04-17","C4M27R2","T Mtolo",214,2020,null,null,{"v":4433.25,"d":"4,433.25"},"Good",null,"K Madzivha"]
[2,"ASA1057","Dell Ultra  sharp 24",null,"2019-04-17","7LL27R2","Vacant",211,2020,null,null,{"v":4433.25,"d":"4,433.25"},"Good",null,"K Madzivha"]
[3,"ASA1063","Dell Ultra  sharp 24",null,"2019-04-17","24M27R2","S Ndamashe",231,2020,null,null,{"v":4433.25,"d":"4,433.25"},"Good",null,"K Madzivha"]
[4,"ASA1058","Dell Ultra  sharp 24",null,"2019-04-17","32L27R2","Vacant",211,2020,null,null,{"v":4433.25,"d":"4,433.25"},"Good",null,"K Madzivha"]
[5,"ASA1028","Dell Ultra  sharp 24",null,"2019-04-17","5DK27R2","H Tladi",229,2020,null,null,{"v":4433.25,"d":"4,433.25"},"Good",null,"K Madzivha"]
[6,"ASA1014","Dell Ultra  sharp 24",null,"2019-04-17","C2M27R7","K Khomani",217,2020,null,null,{"v":4433.25,"d":"4,433.25"},"Good",null,"K Madzivha"]
[7,"ASA1068","Dell Ultra  sharp 24",null,"2019-04-17","87M27R2","S Skosana",203,2020,null,null,{"v":4433.25,"d":"4,433.25"},"Good",null,"K Madzivha"]
[8,"ASA1015","Dell Ultra  sharp 24",null,"2019-04-17","63M27R2","D Naiker",219,2020,null,null,{"v":4433.25,"d":"4,433.25"},"Good",null,"K Madzivha"]
[9,"ASA1089","Dell Ultra  sharp 24",null,"2019-04-17","2WL27R2","R Somanje",218,2020,null,null,{"v":4433.25,"d":"4,433.25"},"Good",null,"K Madzivha"]
[10,"ASA1023","Dell Ultra  sharp 24",null,"2019-04-17","15M27R2","L Majoro",237,2020,null,null,{"v":4433.25,"d":"4,433.25"},"Good",null,"K Madzivha"]
[11,"ASA1027","Dell Docking station K16A",null,"2019-04-17","CNC00J5C6CMC008C60756A06","L Magalo",234,2020,null,null,{"v":4870.25,"d":"4,870.25"},"Good",null,"K Madzivha"]
[12,"ASA1053","Dell Docking station K16A",null,"2019-04-17","CNC00J5C6CMC008C60772A06","L Makwedini",210,2020,null,null,{"v":4870.25,"d":"4,870.25"},"Good",null,"K Madzivha"]
[13,"ASA1069","Dell Docking station K16A",null,"2019-04-17","CNC00J5C6CMC008C60702A06","S Skosana",203,2020,null,null,{"v":4870.25,"d":"4,870.25"},"Good",null,"K Madzivha"]
[14,"ASA1018","Dell Docking station K16A",null,"2019-04-17","CNC00J5C6CMC008C70181A06","Z Nkosi",233,2020,null,null,{"v":4870.25,"d":"4,870.25"},"Good",null,"K Madzivha"]
[15,"ASA1021","Dell Docking station K16A",null,"2019-04-17","CNC00J5C6CMC008C071DA06","E Moloto",233,2020,null,null,{"v":4870.25,"d":"4,870.25"},"Good",null,"K Madzivha"]
[16,"ASA1011","Dell Docking station K16A",null,"2019-04-17","CNC00J5C6CMC008C60773A06","A Tintelo",233,2020,null,null,{"v":4870.25,"d":"4,870.25"},"Good",null,"K Madzivha"]
[17,"ASA1093","Dell Docking station K16A",null,"2019-04-17","CNC00J5C6CMC008C60748A06","ICT",218,2020,null,null,{"v":4870.25,"d":"4,870.25"},"Good",null,"K Madzivha"]
[18,"ASA1079","Dell Docking station K16A",null,"2019-04-17","CNC00J5C6CMC008C7016BA06","T Mtolo",214,2020,null,null,{"v":4870.25,"d":"4,870.25"},"Good",null,"K Madzivha"]
[19,"ASA1056","Dell Docking station K16A",null,"2019-04-17","CNC00J5C6CMC008C60735A06","S Sillingo",233,2020,null,null,{"v":4870.25,"d":"4,870.25"},"Good",null,"K Madzivha"]
[20,"ASA1082","Dell Docking station K16A",null,"2019-04-17","CNC00J5C6CMC008C701A0A06","S Ndamashe",231,2020,null,null,{"v":4870.25,"d":"4,870.25"},"Good",null,"K Madzivha"]
[21,"ASA1111","Photo Frames","Ghandy Trading (Pty) Ltd","2019-07-19",null,"Boardroom",202,2020,null,null,975,"Good",null,"K Madzivha"]
[22,"ASA1112","Photo Frames","Ghandy Trading (Pty) Ltd","2019-07-19",null,"Boardroom",202,2020,null,null,975,"Good",null,"K Madzivha"]
[23,"ASA1113","Photo Frames","Ghandy Trading (Pty) Ltd","2019-07-19",null,"Boardroom",202,2020,null,null,975,"Good",null,"K Madzivha"]
[24,"ASA1114","Photo Frames","Ghandy Trading (Pty) Ltd","2019-07-19",null,"Boardroom",202,2020,null,null,975,"Good",null,"K Madzivha"]
[25,"ASA1115","Photo Frames","Ghandy Trading (Pty) Ltd","2019-07-19",null,"Reception",202,2020,null,null,975,"Good",null,"K Madzivha"]
[26,"ASA1116","Photo Frames","Ghandy Trading (Pty) Ltd","2019-07-19",null,"Reception",202,2020,null,null,975,"Good",null,"K Madzivha"]
[27,"ASA1117","Photo Frames","Ghandy Trading (Pty) Ltd","2019-07-19",null,"Reception",202,2020,null,null,975,"Good",null,"K Madzivha"]
[28,"ASA1118","Photo Frames","Ghandy Trading (Pty) Ltd","2019-07-19",null,"Reception",202,2020,null,null,975,"Good",null,"K Madzivha"]
[29,"ASA1246","Digital Recorder","Esizwe Group","2019-10-07",null,"HR",212,2020,null,null,{"$f":"6897.7/2","v":3448.85},"Good",null,"K Madzivha"]
[30,null,"Digital Recorder","Esizwe Group","2019-10-07",null,"R Singh",208,2020,null,null,{"$f":"6897.7/2","v":3448.85},"Good",null,"K Madzivha"]
[31,"ASA0555","Cabinets Systems","Icon Business Furniture","2019-10-19",null,{"$f":"[1]Sheet1!$I$6","v":"Z Thusi"},{"$f":"[1]Sheet1!$H$6","v":232},2020,null,null,{"$f":"147532.35/41","v":3598.3500000000004},"Good",null,"K Madzivha"]
[32,"ASA0301","Cabinets Systems","Icon Business Furniture","2019-10-19",null,{"$f":"[1]Sheet1!$I$20","v":"K Madzivha"},{"$f":"[1]Sheet1!$H$20","v":220},2020,null,null,{"$f":"147532.35/41","v":3598.3500000000004},"Good",null,"K Madzivha"]
[33,"ASA0313","Cabinets Systems","Icon Business Furniture","2019-10-19",null,"GW",{"$f":"[1]Sheet1!H32","v":211},2020,null,null,3598.3500000000004,"Good",null,"K Madzivha"]
[34,"ASA0314","Cabinets Systems","Icon Business Furniture","2019-10-19",null,"GW",{"$f":"[1]Sheet1!H33","v":211},2020,null,null,3598.3500000000004,"Good",null,"K Madzivha"]
[35,"ASA0318","Cabinets Systems","Icon Business Furniture","2019-10-19",null,{"$f":"[1]Sheet1!I37","v":"S Skosana"},{"$f":"[1]Sheet1!H37","v":205},2020,null,null,3598.3500000000004,"Good",null,"K Madzivha"]
[36,"ASA0319","Cabinets Systems","Icon Business Furniture","2019-10-19",null,{"$f":"[1]Sheet1!I38","v":"S Skosana"},{"$f":"[1]Sheet1!H38","v":205},2020,null,null,3598.3500000000004,"Good",null,"K Madzivha"]
[37,"ASA0350","Cabinets Systems","Icon Business Furniture","2019-10-19",null,{"$f":"[1]Sheet1!$I$70","v":"T Zama"},{"$f":"[1]Sheet1!$H$70","v":207},2020,null,null,3598.3500000000004,"Good",null,"K Madzivha"]
[38,"ASA0358","Cabinets Systems","Icon Business Furniture","2019-10-19",null,{"$f":"[1]Sheet1!$I$78","v":"I Masekoa"},{"$f":"[1]Sheet1!$H$78","v":209},2020,null,null,3598.3500000000004,"Good",null,"K Madzivha"]
[39,"ASA0366","Cabinets Systems","Icon Business Furniture","2019-10-19",null,{"$f":"[1]Sheet1!$I$86","v":"L Makwedini"},{"$f":"[1]Sheet1!$H$86","v":210},2020,null,null,3598.3500000000004,"Good",null,"K Madzivha"]
[40,"ASA0372","Cabinets Systems","Icon Business Furniture","2019-10-19",null,{"$f":"[1]Sheet1!$I$92","v":"R Singn"},{"$f":"[1]Sheet1!$H$92","v":208},2020,null,null,3598.3500000000004,"Good",null,"K Madzivha"]
[41,"ASA0375","Cabinets Systems","Icon Business Furniture","2019-10-19",null,"D Mamaregane",{"$f":"[1]Sheet1!$H$95","v":212},2020,null,null,3598.3500000000004,"Good",null,"K Madzivha"]
[42,"ASA0380","Cabinets Systems","Icon Business Furniture","2019-10-19",null,"HR",{"$f":"[1]Sheet1!$H$100","v":212},2020,null,null,3598.3500000000004,"Good",null,"K Madzivha"]
[43,"ASA0382","Cabinets Systems","Icon Business Furniture","2019-10-19",null,{"$f":"[1]Sheet1!$I$102","v":"T Mtolo"},{"$f":"[1]Sheet1!$H$102","v":214},2020,null,null,3598.3500000000004,"Good",null,"K Madzivha"]
[44,"ASA0387","Cabinets Systems","Icon Business Furniture","2019-10-19",null,{"$f":"[1]Sheet1!$I$107","v":"T Mtolo"},{"$f":"[1]Sheet1!$H$107","v":214},2020,null,null,3598.3500000000004,"Good",null,"K Madzivha"]
[45,"ASA0390","Cabinets Systems","Icon Business Furniture","2019-10-19",null,{"$f":"[1]Sheet1!I110","v":"J Odhiambo"},{"$f":"[1]Sheet1!H110","v":216},2020,null,null,3598.3500000000004,"Good",null,"K Madzivha"]
[46,"ASA0391","Cabinets Systems","Icon Business Furniture","2019-10-19",null,{"$f":"[1]Sheet1!I111","v":"J Odhiambo"},{"$f":"[1]Sheet1!H111","v":216},2020,null,null,3598.3500000000004,"Good",null,"K Madzivha"]
[47,"ASA0405","Cabinets Systems","Icon Business Furniture","2019-10-19",null,"K Khomani",{"$f":"[1]Sheet1!H125","v":217},2020,null,null,3598.3500000000004,"Good",null,"K Madzivha"]
[48,"ASA0406","Cabinets Systems","Icon Business Furniture","2019-10-19",null,"L Mafolo",{"$f":"[1]Sheet1!H126","v":217},2020,null,null,3598.3500000000004,"Good",null,"K Madzivha"]
[49,"ASA0420","Cabinets Systems","Icon Business Furniture","2019-10-19",null,{"$f":"[1]Sheet1!I140","v":"R Somanje"},{"$f":"[1]Sheet1!H140","v":218},2020,null,null,3598.3500000000004,"Good",null,"K Madzivha"]
[50,"ASA0421","Cabinets Systems","Icon Business Furniture","2019-10-19",null,{"$f":"[1]Sheet1!I141","v":"R Somanje"},{"$f":"[1]Sheet1!H141","v":218},2020,null,null,3598.3500000000004,"Good",null,"K Madzivha"]
[51,"ASA0422","Cabinets Systems","Icon Business Furniture","2019-10-19",null,{"$f":"[1]Sheet1!I142","v":"R Somanje"},{"$f":"[1]Sheet1!H142","v":218},2020,null,null,3598.3500000000004,"Good",null,"K Madzivha"]
[52,"ASA0431","Cabinets Systems","Icon Business Furniture","2019-10-19",null,{"$f":"[1]Sheet1!I150","v":"M Mabuse"},{"$f":"[1]Sheet1!H150","v":224},2020,null,null,3598.3500000000004,"Good",null,"K Madzivha"]
[53,"ASA0432","Cabinets Systems","Icon Business Furniture","2019-10-19",null,{"$f":"[1]Sheet1!I151","v":"M Mabuse"},{"$f":"[1]Sheet1!H151","v":224},2020,null,null,3598.3500000000004,"Good",null,"K Madzivha"]
[54,"ASA0434","Cabinets Systems","Icon Business Furniture","2019-10-19",null,{"$f":"[1]Sheet1!$I$153","v":"C Morgan"},{"$f":"[1]Sheet1!$H$153","v":226},2020,null,null,3598.3500000000004,"Good",null,"K Madzivha"]
[55,"ASA0439","Cabinets Systems","Icon Business Furniture","2019-10-19",null,"H Tladi",{"$f":"[1]Sheet1!$H$158","v":229},2020,null,null,3598.3500000000004,"Good",null,"K Madzivha"]
[56,"ASA0447","Cabinets Systems","Icon Business Furniture","2019-10-19",null,{"$f":"[1]Sheet1!$I$166","v":"Z Nkosi"},{"$f":"[1]Sheet1!$H$166","v":233},2020,null,null,3598.3500000000004,"Good",null,"K Madzivha"]
[57,"ASA0448","Cabinets Systems","Icon Business Furniture","2019-10-19",null,{"$f":"[1]Sheet1!$I$168","v":"E Moloto"},{"$f":"[1]Sheet1!$H$168","v":233},2020,null,null,3598.3500000000004,"Good",null,"K Madzivha"]
[58,"ASA0453","Cabinets Systems","Icon Business Furniture","2019-10-19",null,{"$f":"[1]Sheet1!$I$173","v":"L Majoro"},{"$f":"[1]Sheet1!$H$173","v":237},2020,null,null,3598.3500000000004,"Good",null,"K Madzivha"]
[59,"ASA0458","Cabinets Systems","Icon Business Furniture","2019-10-19",null,{"$f":"[1]Sheet1!$I$178","v":"O Mvundlela"},{"$f":"[1]Sheet1!$H$178","v":245},2020,null,null,3598.3500000000004,"Good",null,"K Madzivha"]
[60,"ASA0506","Cabinets Systems","Icon Business Furniture","2019-10-19",null,{"$f":"[1]Sheet1!$I$226","v":"O Ramantsi"},{"$f":"[1]Sheet1!$H$226","v":241},2020,null,null,3598.3500000000004,"Good",null,"K Madzivha"]
[61,"ASA0511","Cabinets Systems","Icon Business Furniture","2019-10-19",null,{"$f":"[1]Sheet1!I231","v":"S Molete"},{"$f":"[1]Sheet1!H231","v":213},2020,null,null,3598.3500000000004,"Good",null,"K Madzivha"]
[62,"ASA0512","Cabinets Systems","Icon Business Furniture","2019-10-19",null,{"$f":"[1]Sheet1!I232","v":"S Molete"},{"$f":"[1]Sheet1!H232","v":213},2020,null,null,3598.3500000000004,"Good",null,"K Madzivha"]
[63,"ASA0517","Cabinets Systems","Icon Business Furniture","2019-10-19",null,{"$f":"[1]Sheet1!$I$237","v":"S Molete"},{"$f":"[1]Sheet1!$H$237","v":213},2020,null,null,3598.3500000000004,"Good",null,"K Madzivha"]
[64,"ASA0545","Cabinets Systems","Icon Business Furniture","2019-10-19",null,{"$f":"[1]Sheet1!$I$265","v":"L Magalo"},{"$f":"[1]Sheet1!$H$265","v":234},2020,null,null,3598.3500000000004,"Good",null,"K Madzivha"]
[65,"ASA0551","Cabinets Systems","Icon Business Furniture","2019-10-19",null,{"$f":"[1]Sheet1!I271","v":"L Magalo"},{"$f":"[1]Sheet1!H271","v":234},2020,null,null,3598.3500000000004,"Good",null,"K Madzivha"]
[66,"ASA0552","Cabinets Systems","Icon Business Furniture","2019-10-19",null,{"$f":"[1]Sheet1!I272","v":"L Magalo"},{"$f":"[1]Sheet1!H272","v":234},2020,null,null,3598.3500000000004,"Good",null,"K Madzivha"]
[67,"ASA0562","Cabinets Systems","Icon Business Furniture","2019-10-19",null,{"$f":"[1]Sheet1!$I$277","v":"S Ndamashe"},{"$f":"[1]Sheet1!$H$277","v":231},2020,null,null,3598.3500000000004,"Good",null,"K Madzivha"]
[68,"ASA0569","Cabinets Systems","Icon Business Furniture","2019-10-19",null,"L Bhembe",{"$f":"[1]Sheet1!$H$283","v":243},2020,null,null,3598.3500000000004,"Good",null,"K Madzivha"]
[69,"ASA0576","Cabinets Systems","Icon Business Furniture","2019-10-19",null,"M Mahlaule",{"$f":"[1]Sheet1!$H$290","v":239},2020,null,null,3598.3500000000004,"Good",null,"K Madzivha"]
[70,"ASA0583","Cabinets Systems","Icon Business Furniture","2019-10-19",null,{"$f":"[1]Sheet1!$I$297","v":"L Montoedi"},{"$f":"[1]Sheet1!$H$297","v":228},2020,null,null,3598.3500000000004,"Good",null,"K Madzivha"]
[71,"ASA0587","Cabinets Systems","Icon Business Furniture","2019-10-19",null,{"$f":"[1]Sheet1!$I$301","v":"L Montoedi"},{"$f":"[1]Sheet1!$H$301","v":228},2020,null,null,3598.3500000000004,"Good",null,"K Madzivha"]
[72,"ASA0589","Cabinets Systems","Icon Business Furniture","2019-10-19",null,{"$f":"[1]Sheet1!$I$303","v":"L Montoedi"},{"$f":"[1]Sheet1!$H$303","v":228},2020,null,null,3598.35,"Good",null,"K Madzivha"]
[73,null,"Corporate Connector","Icon Business Furniture","2019-10-19",null,"SCM",222,2020,null,null,{"$f":"1758.35/2","v":{"v":879.175,"d":"879.18"}},"Good",null,"K Madzivha"]
[74,null,"Corporate Connector","Icon Business Furniture","2019-10-19",null,"SCM",222,2020,null,null,879.17,"Good",null,"K Madzivha"]
[75,"ASA1254","Seagate Back up Storage","Esizwe Group","2019-11-19",null,"ICT(Server)",243,2020,null,null,{"$f":"3447.7/2","v":1723.85},"Good",null,"K Madzivha"]
[76,null,"Seagate Back up Storage","Esizwe Group","2019-11-19",null,"ICT",243,2020,null,null,{"$f":"3447.7/2","v":1723.85},"Good",null,"K Madzivha"]
[77,{"$f":"[1]Sheet1!$B$309","v":"ASA0595"},"Pigeon Hole Unit","Icon Business Furniture","2019-10-19",null,"Printer room",{"$f":"[1]Sheet1!$H$309","v":249},2020,null,null,{"$f":"6198.5/2","v":3099.25},"Good",null,"K Madzivha"]
[78,{"$f":"[1]Sheet1!$B$315","v":"ASA0601"},"Pigeon Hole Unit","Icon Business Furniture","2019-10-19",null,"Printer room",{"$f":"[1]Sheet1!$H$315","v":206},2020,null,null,{"$f":"6198.5/2","v":3099.25},"Good",null,"K Madzivha"]
[79,{"$f":"[1]Sheet1!$B$64","v":"ASA0344"},"Credenza Meeting room","Icon Business Furniture","2019-10-19",null,{"$f":"[1]Sheet1!$I$64","v":"Small Boardroom"},{"$f":"[1]Sheet1!$H$64","v":204},2020,null,null,{"$f":"12966.25/5","v":2593.25},"Good",null,"K Madzivha"]
[80,{"$f":"[1]Sheet1!B68","v":"ASA0348"},"Credenza Meeting room","Icon Business Furniture","2019-10-19",null,{"$f":"[1]Sheet1!I68","v":"Printer room"},{"$f":"[1]Sheet1!H68","v":249},2020,null,null,{"$f":"5639.6/2","v":2819.8},"Good",null,"K Madzivha"]
[81,{"$f":"[1]Sheet1!B69","v":"ASA0349"},"Credenza Meeting room","Icon Business Furniture","2019-10-19",null,{"$f":"[1]Sheet1!I69","v":"Printer room"},{"$f":"[1]Sheet1!H69","v":206},2020,null,null,{"$f":"5639.6/2","v":2819.8},"Good",null,"K Madzivha"]
[82,{"$f":"[1]Sheet1!$B$118","v":"ASA0398"},"Credenza Meeting room","Icon Business Furniture","2019-10-19",null,"D Naiker",{"$f":"[1]Sheet1!$H$118","v":219},2020,null,null,{"$f":"12966.25/5","v":2593.25},"Good",null,"K Madzivha"]
[83,{"$f":"[1]Sheet1!B185","v":"ASA0464"},"Credenza Meeting room","Icon Business Furniture","2019-10-19",null,{"$f":"[1]Sheet1!I185","v":"Main Boardroom"},{"$f":"[1]Sheet1!H185","v":242},2020,null,null,2593.25,"Good",null,"K Madzivha"]
[84,{"$f":"[1]Sheet1!B186","v":"ASA0465"},"Credenza Meeting room","Icon Business Furniture","2019-10-19",null,{"$f":"[1]Sheet1!I186","v":"Main Boardroom"},{"$f":"[1]Sheet1!H186","v":242},2020,null,null,2593.25,"Good",null,"K Madzivha"]
[85,{"$f":"[1]Sheet1!B187","v":"ASA0466"},"Credenza Meeting room","Icon Business Furniture","2019-10-19",null,{"$f":"[1]Sheet1!I187","v":"Main Boardroom"},{"$f":"[1]Sheet1!H187","v":242},2020,null,null,2593.25,"Good",null,"K Madzivha"]
[86,"ASA0528","Bar Fridge","Icon Business Furniture","2019-10-19",null,"Canteen",null,2020,null,null,2566.8,"Good",null,"K Madzivha"]
[87,{"$f":"[1]Sheet1!$B$242","v":"ASA0522"},"All purpose Table","Icon Business Furniture","2019-10-19",null,{"$f":"[1]Sheet1!$I$242","v":"Canteen"},null,2020,null,null,{"$f":"10567.35/3","v":3522.4500000000003},"Good",null,"K Madzivha"]
[88,{"$f":"[1]Sheet1!B252","v":"ASA0532"},"All purpose Table","Icon Business Furniture","2019-10-19",null,{"$f":"[1]Sheet1!I252","v":"Kitchen"},251,2020,null,null,{"$f":"10567.35/3","v":3522.4500000000003},"Good",null,"K Madzivha"]
[89,{"$f":"[1]Sheet1!B253","v":"ASA0533"},"All purpose Table","Icon Business Furniture","2019-10-19",null,{"$f":"[1]Sheet1!I253","v":"Kitchen"},251,2020,null,null,3522.4500000000003,"Good",null,"K Madzivha"]
[90,{"$f":"[1]Sheet1!B243","v":"ASA0523"},{"$f":"[1]Sheet1!C243","v":"Canteen Table"},"Icon Business Furniture","2019-10-19",null,"Canteen",null,2020,null,null,{"$f":"25647.3/7","v":3663.9},"Good",null,"K Madzivha"]
[91,{"$f":"[1]Sheet1!B244","v":"ASA0524"},{"$f":"[1]Sheet1!C244","v":"Canteen Table"},"Icon Business Furniture","2019-10-19",null,"Canteen",null,2020,null,null,{"$f":"25647.3/7","v":3663.9},"Good",null,"K Madzivha"]
[92,{"$f":"[1]Sheet1!B245","v":"ASA0525"},{"$f":"[1]Sheet1!C245","v":"Canteen Table"},"Icon Business Furniture","2019-10-19",null,"Canteen",null,2020,null,null,3663.9,"Good",null,"K Madzivha"]
[93,{"$f":"[1]Sheet1!B246","v":"ASA0526"},{"$f":"[1]Sheet1!C246","v":"Canteen Table"},"Icon Business Furniture","2019-10-19",null,"Canteen",null,2020,null,null,3663.9,"Good",null,"K Madzivha"]
[94,{"$f":"[1]Sheet1!B247","v":"ASA0527"},{"$f":"[1]Sheet1!C247","v":"Canteen Table"},"Icon Business Furniture","2019-10-19",null,"Canteen",null,2020,null,null,3663.9,"Good",null,"K Madzivha"]
[95,{"$f":"[1]Sheet1!B249","v":"ASA0529"},{"$f":"[1]Sheet1!C249","v":"Canteen Table"},"Icon Business Furniture","2019-10-19",null,"Canteen",null,2020,null,null,3663.9,"Good",null,"K Madzivha"]
[96,{"$f":"[1]Sheet1!B250","v":"ASA0530"},{"$f":"[1]Sheet1!C250","v":"Canteen Table"},"Icon Business Furniture","2019-10-19",null,"Canteen",null,2020,null,null,3663.9,"Good",null,"K Madzivha"]
[97,{"$f":"[1]Sheet1!B310","v":"ASA0596"},"Boardroom Table Extension","Icon Business Furniture","2019-10-19",null,"Main Boardroom",242,2020,null,null,{"$f":"4577/3","v":1525.6666666666667},"Good",null,"K Madzivha"]
[98,{"$f":"[1]Sheet1!B311","v":"ASA0597"},"Boardroom Table Extension","Icon Business Furniture","2019-10-19",null,"Main Boardroom",242,2020,null,null,{"$f":"4577/3","v":1525.6666666666667},"Good",null,"K Madzivha"]
[99,{"$f":"[1]Sheet1!$B$313","v":"ASA0599"},"Boardroom Table Extension","Icon Business Furniture","2019-10-19",null,"Main Boardroom",242,2020,null,null,1525.6666666666667,"Good",null,"K Madzivha"]
[100,null,"Interconnecting Cable 1m","Icon Business Furniture","2019-10-19",null,"SCM",222,2020,null,null,{"$f":"1380/4","v":345},"Good",null,"K Madzivha"]
[101,null,"Interconnecting Cable 1m","Icon Business Furniture","2019-10-19",null,"SCM",222,2020,null,null,{"$f":"1380/4","v":345},"Good",null,"K Madzivha"]
[102,null,"Interconnecting Cable 1m","Icon Business Furniture","2019-10-19",null,"SCM",222,2020,null,null,345,"Good",null,"K Madzivha"]
[103,null,"Interconnecting Cable 1m","Icon Business Furniture","2019-10-19",null,"SCM",222,2020,null,null,345,"Good",null,"K Madzivha"]
[104,null,"Interconnecting Cable 3m","Icon Business Furniture","2019-10-19",null,"SCM",222,2020,null,null,{"$f":"874/2","v":437},"Good",null,"K Madzivha"]
[105,null,"Interconnecting Cable 3m","Icon Business Furniture","2019-10-19",null,"SCM",222,2020,null,null,{"$f":"874/2","v":437},"Good",null,"K Madzivha"]
[106,null,"Power Cable 5m","Icon Business Furniture","2019-10-19",null,"SCM",222,2020,null,null,{"$f":"1023.5/2","v":511.75},"Good",null,"K Madzivha"]
[107,null,"Power Cable 5m","Icon Business Furniture","2019-10-19",null,"SCM",222,2020,null,null,{"$f":"1023.5/2","v":511.75},"Good",null,"K Madzivha"]
[108,{"$f":"[1]Sheet1!$B$254","v":"ASA0534"},{"$f":"[1]Sheet1!$C$254","v":"Barstool"},"Icon Business Furniture","2019-10-19",null,{"$f":"[1]Sheet1!$I$254","v":"Kitchen"},251,2020,null,null,{"$f":"8010.9/6","v":1335.1499999999999},"Good",null,"K Madzivha"]
[109,{"$f":"[1]Sheet1!B256","v":"ASA0536"},{"$f":"[1]Sheet1!C256","v":"Barstool"},"Icon Business Furniture","2019-10-19",null,{"$f":"[1]Sheet1!I256","v":"Kitchen"},251,2020,null,null,{"$f":"8010.9/6","v":1335.1499999999999},"Good",null,"K Madzivha"]
[110,{"$f":"[1]Sheet1!B257","v":"ASA0537"},{"$f":"[1]Sheet1!C257","v":"Barstool"},"Icon Business Furniture","2019-10-19",null,{"$f":"[1]Sheet1!I257","v":"Kitchen"},251,2020,null,null,1335.1499999999999,"Good",null,"K Madzivha"]
[111,{"$f":"[1]Sheet1!B258","v":"ASA0538"},{"$f":"[1]Sheet1!C258","v":"Barstool"},"Icon Business Furniture","2019-10-19",null,{"$f":"[1]Sheet1!I258","v":"Kitchen"},251,2020,null,null,1335.1499999999999,"Good",null,"K Madzivha"]
[112,{"$f":"[1]Sheet1!B307","v":"ASA0593"},{"$f":"[1]Sheet1!C307","v":"Barstool"},"Icon Business Furniture","2019-10-19",null,{"$f":"[1]Sheet1!I307","v":"Canteen"},null,2020,null,null,1335.1499999999999,"Good",null,"K Madzivha"]
[113,{"$f":"[1]Sheet1!B308","v":"ASA0594"},{"$f":"[1]Sheet1!C308","v":"Barstool"},"Icon Business Furniture","2019-10-19",null,{"$f":"[1]Sheet1!I308","v":"Canteen"},null,2020,null,null,1335.1499999999999,"Good",null,"K Madzivha"]
[114,"ASA0467","Crisp Arm Chair","Icon Business Furniture","2019-10-19",null,"Canteen",242,2020,null,null,{"$f":"13202/7","v":1886},"Good",null,"K Madzivha"]
[115,"ASA0468","Crisp Arm Chair","Icon Business Furniture","2019-10-19",null,"Canteen",242,2020,null,null,{"$f":"13202/7","v":1886},"Good",null,"K Madzivha"]
[116,"ASA0469","Crisp Arm Chair","Icon Business Furniture","2019-10-19",null,"Canteen",242,2020,null,null,1886,"Good",null,"K Madzivha"]
[117,"ASA0470","Crisp Arm Chair","Icon Business Furniture","2019-10-19",null,"Canteen",242,2020,null,null,1886,"Good",null,"K Madzivha"]
[118,"ASA0471","Crisp Arm Chair","Icon Business Furniture","2019-10-19",null,"Canteen",242,2020,null,null,1886,"Good",null,"K Madzivha"]
[119,"ASA0472","Crisp Arm Chair","Icon Business Furniture","2019-10-19",null,"Canteen",242,2020,null,null,1886,"Good",null,"K Madzivha"]
[120,"ASA0473","Crisp Arm Chair","Icon Business Furniture","2019-10-19",null,"Canteen",242,2020,null,null,1886,"Good",null,"K Madzivha"]
[121,"ASA0474","Crisp Arm Chair","Icon Business Furniture","2019-10-19",null,"Canteen",242,2020,null,null,1886,"Good",null,"K Madzivha"]
[122,"ASA0475","Crisp Arm Chair","Icon Business Furniture","2019-10-19",null,"Canteen",242,2020,null,null,1886,"Good",null,"K Madzivha"]
[123,"ASA0476","Crisp Arm Chair","Icon Business Furniture","2019-10-19",null,"Canteen",242,2020,null,null,1886,"Good",null,"K Madzivha"]
[124,"ASA0477","Crisp Arm Chair","Icon Business Furniture","2019-10-19",null,"Canteen",242,2020,null,null,1886,"Good",null,"K Madzivha"]
[125,"ASA0478","Crisp Arm Chair","Icon Business Furniture","2019-10-19",null,"Canteen",242,2020,null,null,1886,"Good",null,"K Madzivha"]
[126,"ASA0479","Crisp Arm Chair","Icon Business Furniture","2019-10-19",null,"Canteen",242,2020,null,null,1886,"Good",null,"K Madzivha"]
[127,"ASA0480","Crisp Arm Chair","Icon Business Furniture","2019-10-19",null,"Canteen",242,2020,null,null,1886,"Good",null,"K Madzivha"]
[128,"ASA0481","Crisp Arm Chair","Icon Business Furniture","2019-10-19",null,"Canteen",242,2020,null,null,1886,"Good",null,"K Madzivha"]
[129,"ASA0482","Crisp Arm Chair","Icon Business Furniture","2019-10-19",null,"Canteen",242,2020,null,null,1886,"Good",null,"K Madzivha"]
[130,"ASA0483","Crisp Arm Chair","Icon Business Furniture","2019-10-19",null,"Canteen",242,2020,null,null,1886,"Good",null,"K Madzivha"]
[131,"ASA0484","Crisp Arm Chair","Icon Business Furniture","2019-10-19",null,"Canteen",242,2020,null,null,1886,"Good",null,"K Madzivha"]
[132,"ASA0485","Crisp Arm Chair","Icon Business Furniture","2019-10-19",null,"Canteen",242,2020,null,null,1886,"Good",null,"K Madzivha"]
[133,"ASA0486","Crisp Arm Chair","Icon Business Furniture","2019-10-19",null,"Canteen",242,2020,null,null,1886,"Good",null,"K Madzivha"]
[134,"ASA0487","Crisp Arm Chair","Icon Business Furniture","2019-10-19",null,"Canteen",242,2020,null,null,1886,"Good",null,"K Madzivha"]
[135,"ASA0488","Crisp Arm Chair","Icon Business Furniture","2019-10-19",null,"Canteen",242,2020,null,null,1886,"Good",null,"K Madzivha"]
[136,"ASA0489","Crisp Arm Chair","Icon Business Furniture","2019-10-19",null,"Canteen",242,2020,null,null,1886,"Good",null,"K Madzivha"]
[137,"ASA0490","Crisp Arm Chair","Icon Business Furniture","2019-10-19",null,"Canteen",242,2020,null,null,1886,"Good",null,"K Madzivha"]
[138,"ASA0491","Crisp Arm Chair","Icon Business Furniture","2019-10-19",null,"Canteen",242,2020,null,null,1886,"Good",null,"K Madzivha"]
[139,"ASA0493","Crisp Arm Chair","Icon Business Furniture","2019-10-19",null,"Canteen",null,2020,null,null,1886,"Good",null,"K Madzivha"]
[140,"ASA0494","Crisp Arm Chair","Icon Business Furniture","2019-10-19",null,"Canteen",null,2020,null,null,1886,"Good",null,"K Madzivha"]
[141,"ASA0495","Crisp Arm Chair","Icon Business Furniture","2019-10-19",null,"Small Boardroom",204,2020,null,null,1886,"Good",null,"K Madzivha"]
[142,"ASA0496","Crisp Arm Chair","Icon Business Furniture","2019-10-19",null,"Small Boardroom",204,2020,null,null,1886,"Good",null,"K Madzivha"]
[143,"ASA0497","Crisp Arm Chair","Icon Business Furniture","2019-10-19",null,"Canteen",null,2020,null,null,1886,"Good",null,"K Madzivha"]
[144,"ASA0498","Crisp Arm Chair","Icon Business Furniture","2019-10-19",null,"Small Boardroom",204,2020,null,null,1886,"Good",null,"K Madzivha"]
[145,"ASA0499","Crisp Arm Chair","Icon Business Furniture","2019-10-19",null,"Canteen",null,2020,null,null,1886,"Good",null,"K Madzivha"]
[146,null,"Corporate Connector","Icon Business Furniture","2019-10-19",null,"SCM",222,2020,null,null,{"$f":"77367.4/41","v":1887.0097560975607},"Good",null,"K Madzivha"]
[147,null,"Corporate Connector","Icon Business Furniture","2019-10-19",null,"SCM",222,2020,null,null,{"$f":"77367.4/41","v":1887.0097560975607},"Good",null,"K Madzivha"]
[148,null,"Corporate Connector","Icon Business Furniture","2019-10-19",null,"SCM",222,2020,null,null,1887.0097560975607,"Good",null,"K Madzivha"]
[149,null,"Corporate Connector","Icon Business Furniture","2019-10-19",null,"SCM",222,2020,null,null,1887.0097560975607,"Good",null,"K Madzivha"]
[150,null,"Corporate Connector","Icon Business Furniture","2019-10-19",null,"SCM",222,2020,null,null,1887.0097560975607,"Good",null,"K Madzivha"]
[151,null,"Corporate Connector","Icon Business Furniture","2019-10-19",null,"SCM",222,2020,null,null,1887.0097560975607,"Good",null,"K Madzivha"]
[152,null,"Corporate Connector","Icon Business Furniture","2019-10-19",null,"SCM",222,2020,null,null,1887.0097560975607,"Good",null,"K Madzivha"]
[153,null,"Corporate Connector","Icon Business Furniture","2019-10-19",null,"SCM",222,2020,null,null,1887.0097560975607,"Good",null,"K Madzivha"]
[154,null,"Corporate Connector","Icon Business Furniture","2019-10-19",null,"SCM",222,2020,null,null,1887.0097560975607,"Good",null,"K Madzivha"]
[155,null,"Corporate Connector","Icon Business Furniture","2019-10-19",null,"SCM",222,2020,null,null,1887.0097560975607,"Good",null,"K Madzivha"]
[156,null,"Corporate Connector","Icon Business Furniture","2019-10-19",null,"SCM",222,2020,null,null,1887.0097560975607,"Good",null,"K Madzivha"]
[157,null,"Corporate Connector","Icon Business Furniture","2019-10-19",null,"SCM",222,2020,null,null,1887.0097560975607,"Good",null,"K Madzivha"]
[158,null,"Corporate Connector","Icon Business Furniture","2019-10-19",null,"SCM",222,2020,null,null,1887.0097560975607,"Good",null,"K Madzivha"]
[159,null,"Corporate Connector","Icon Business Furniture","2019-10-19",null,"SCM",222,2020,null,null,1887.0097560975607,"Good",null,"K Madzivha"]
[160,null,"Corporate Connector","Icon Business Furniture","2019-10-19",null,"SCM",222,2020,null,null,1887.0097560975607,"Good",null,"K Madzivha"]
[161,null,"Corporate Connector","Icon Business Furniture","2019-10-19",null,"SCM",222,2020,null,null,1887.0097560975607,"Good",null,"K Madzivha"]
[162,null,"Corporate Connector","Icon Business Furniture","2019-10-19",null,"SCM",222,2020,null,null,1887.0097560975607,"Good",null,"K Madzivha"]
[163,null,"Corporate Connector","Icon Business Furniture","2019-10-19",null,"SCM",222,2020,null,null,1887.0097560975607,"Good",null,"K Madzivha"]
[164,null,"Corporate Connector","Icon Business Furniture","2019-10-19",null,"SCM",222,2020,null,null,1887.0097560975607,"Good",null,"K Madzivha"]
[165,null,"Corporate Connector","Icon Business Furniture","2019-10-19",null,"SCM",222,2020,null,null,1887.0097560975607,"Good",null,"K Madzivha"]
[166,null,"Corporate Connector","Icon Business Furniture","2019-10-19",null,"SCM",222,2020,null,null,1887.0097560975607,"Good",null,"K Madzivha"]
[167,null,"Corporate Connector","Icon Business Furniture","2019-10-19",null,"SCM",222,2020,null,null,1887.0097560975607,"Good",null,"K Madzivha"]
[168,null,"Corporate Connector","Icon Business Furniture","2019-10-19",null,"SCM",222,2020,null,null,1887.0097560975607,"Good",null,"K Madzivha"]
[169,null,"Corporate Connector","Icon Business Furniture","2019-10-19",null,"SCM",222,2020,null,null,1887.0097560975607,"Good",null,"K Madzivha"]
[170,null,"Corporate Connector","Icon Business Furniture","2019-10-19",null,"SCM",222,2020,null,null,1887.0097560975607,"Good",null,"K Madzivha"]
[171,null,"Corporate Connector","Icon Business Furniture","2019-10-19",null,"SCM",222,2020,null,null,1887.0097560975607,"Good",null,"K Madzivha"]
[172,null,"Corporate Connector","Icon Business Furniture","2019-10-19",null,"SCM",222,2020,null,null,1887.0097560975607,"Good",null,"K Madzivha"]
[173,null,"Corporate Connector","Icon Business Furniture","2019-10-19",null,"SCM",222,2020,null,null,1887.0097560975607,"Good",null,"K Madzivha"]
[174,null,"Corporate Connector","Icon Business Furniture","2019-10-19",null,"SCM",222,2020,null,null,1887.0097560975607,"Good",null,"K Madzivha"]
[175,null,"Corporate Connector","Icon Business Furniture","2019-10-19",null,"SCM",222,2020,null,null,1887.0097560975607,"Good",null,"K Madzivha"]
[176,null,"Corporate Connector","Icon Business Furniture","2019-10-19",null,"SCM",222,2020,null,null,1887.0097560975607,"Good",null,"K Madzivha"]
[177,null,"Corporate Connector","Icon Business Furniture","2019-10-19",null,"SCM",222,2020,null,null,1887.0097560975607,"Good",null,"K Madzivha"]
[178,null,"Corporate Connector","Icon Business Furniture","2019-10-19",null,"SCM",222,2020,null,null,1887.0097560975607,"Good",null,"K Madzivha"]
[179,null,"Corporate Connector","Icon Business Furniture","2019-10-19",null,"SCM",222,2020,null,null,1887.0097560975607,"Good",null,"K Madzivha"]
[180,null,"Corporate Connector","Icon Business Furniture","2019-10-19",null,"SCM",222,2020,null,null,1887.0097560975607,"Good",null,"K Madzivha"]
[181,null,"Corporate Connector","Icon Business Furniture","2019-10-19",null,"SCM",222,2020,null,null,1887.0097560975607,"Good",null,"K Madzivha"]
[182,null,"Corporate Connector","Icon Business Furniture","2019-10-19",null,"SCM",222,2020,null,null,1887.0097560975607,"Good",null,"K Madzivha"]
[183,null,"Corporate Connector","Icon Business Furniture","2019-10-19",null,"SCM",222,2020,null,null,1887.0097560975607,"Good",null,"K Madzivha"]
[184,null,"Corporate Connector","Icon Business Furniture","2019-10-19",null,"SCM",222,2020,null,null,1887.0097560975607,"Good",null,"K Madzivha"]
[185,null,"Corporate Connector","Icon Business Furniture","2019-10-19",null,"SCM",222,2020,null,null,1887.0097560975607,"Good",null,"K Madzivha"]
[186,null,"Corporate Connector","Icon Business Furniture","2019-10-19",null,"SCM",222,2020,null,null,1887.0097560975607,"Good",null,"K Madzivha"]
[187,"ASA0500","Crisp Visitors Arm Chair","Icon Business Furniture","2019-10-19",null,"Small Boardroom",202,2020,null,null,1886,"Good",null,"K Madzivha"]
[188,"ASA0520","Crisp Visitors Arm Chair","Icon Business Furniture","2019-10-19",null,"Vacant",217,2020,null,null,1886,"Good",null,"K Madzivha"]
[189,"ASA0521","Crisp Visitors Arm Chair","Icon Business Furniture","2019-10-19",null,"Canteen",null,2020,null,null,1886,"Good",null,"K Madzivha"]
[190,"ASA0531","Crisp Visitors Arm Chair","Icon Business Furniture","2019-10-19",null,"Small Boardroom",204,2020,null,null,1886,"Good",null,"K Madzivha"]
[191,"ASA0593","Crisp Visitors Arm Chair","Icon Business Furniture","2019-10-19",null,"Canteen",null,2020,null,null,1886,"Good",null,"K Madzivha"]
[192,"ASA0594","Crisp Visitors Arm Chair","Icon Business Furniture","2019-10-19",null,"Canteen",null,2020,null,null,1886,"Good",null,"K Madzivha"]
[193,"ASA0553","Crisp Visitors Arm Chair","Icon Business Furniture","2019-10-19",null,"Z Thusi",232,2020,null,null,1886,"Good",null,"K Madzivha"]
[194,"ASA0554","Crisp Visitors Arm Chair","Icon Business Furniture","2019-10-19",null,"Z Thusi",232,2020,null,null,1886,"Good",null,"K Madzivha"]
[195,"ASA0410","Crisp Visitors Arm Chair","Icon Business Furniture","2019-10-19",null,"L Bhembe",243,2020,null,null,1886,"Good",null,"K Madzivha"]
[196,"ASA0573","Crisp Visitors Arm Chair","Icon Business Furniture","2019-10-19",null,"L Bhembe",243,2020,null,null,1886,"Good",null,"K Madzivha"]
[197,"ASA0579","Crisp Visitors Arm Chair","Icon Business Furniture","2019-10-19",null,"M Mahlaule",239,2020,null,null,1886,"Good",null,"K Madzivha"]
[198,"ASA0580","Crisp Visitors Arm Chair","Icon Business Furniture","2019-10-19",null,"M Mahlaule",239,2020,null,null,1886,"Good",null,"K Madzivha"]
[199,"ASA0547","Crisp Visitors Arm Chair","Icon Business Furniture","2019-10-19",null,"L Magalo",234,2020,null,null,1886,"Good",null,"K Madzivha"]
[200,"ASA0548","Crisp Visitors Arm Chair","Icon Business Furniture","2019-10-19",null,"L Magalo",234,2020,null,null,1886,"Good",null,"K Madzivha"]
[201,"ASA0509","Crisp Visitors Arm Chair","Icon Business Furniture","2019-10-19",null,"S Molete",213,2020,null,null,1886,"Good",null,"K Madzivha"]
[202,"ASA0508","Crisp Visitors Arm Chair","Icon Business Furniture","2019-10-19",null,"S Molete",213,2020,null,null,1886,"Good",null,"K Madzivha"]
[203,"ASA0501","Crisp Visitors Arm Chair","Icon Business Furniture","2019-10-19",null,"O Ramantsi",241,2020,null,null,1886,"Good",null,"K Madzivha"]
[204,"ASA0502","Crisp Visitors Arm Chair","Icon Business Furniture","2019-10-19",null,"O Ramantsi",241,2020,null,null,1886,"Good",null,"K Madzivha"]
[205,{"$f":"[2]Sheet1!$B$150","v":"ASA0585"},"Crisp Visitors Arm Chair","Icon Business Furniture","2019-10-19",null,"L Montoedi",228,2020,null,null,1886,"Good",null,"K Madzivha"]
[206,{"$f":"[2]Sheet1!$B$153","v":"ASA0588"},"Crisp Visitors Arm Chair","Icon Business Furniture","2019-10-19",null,"L Montoedi",228,2020,null,null,1886,"Good",null,"K Madzivha"]
[207,"ASA0534","Crisp Visitors Arm Chair","Icon Business Furniture","2019-10-19",null,"Kitchen",251,2020,null,null,1886,"Good",null,"K Madzivha"]
[208,"ASA0536","Crisp Visitors Arm Chair","Icon Business Furniture","2019-10-19",null,"Kitchen",251,2020,null,null,1886,"Good",null,"K Madzivha"]
[209,"ASA0537","Crisp Visitors Arm Chair","Icon Business Furniture","2019-10-19",null,"Kitchen",251,2020,null,null,1886,"Good",null,"K Madzivha"]
[210,"ASA0538","Crisp Visitors Arm Chair","Icon Business Furniture","2019-10-19",null,"Kitchen",251,2020,null,null,1886,"Good",null,"K Madzivha"]
[211,"ASA0399","Crisp Visitors Arm Chair","Icon Business Furniture","2019-10-19",null,"Canteen",null,2020,null,null,1886,"Good",null,"K Madzivha"]
[212,"ASA0400","Crisp Visitors Arm Chair","Icon Business Furniture","2019-10-19",null,"D Mamaregane",222,2020,null,null,1886,"Good",null,"K Madzivha"]
[213,"ASA0401","Crisp Visitors Arm Chair","Icon Business Furniture","2019-10-19",null,"Canteen",null,2020,null,null,1886,"Good",null,"K Madzivha"]
[214,"ASA0402","Crisp Visitors Arm Chair","Icon Business Furniture","2019-10-19",null,"D Mamaregane",222,2020,null,null,1886,"Good",null,"K Madzivha"]
[215,"ASA0427","Crisp Visitors Arm Chair","Icon Business Furniture","2019-10-19",null,"M Mabuse",224,2020,null,null,1886,"Good",null,"K Madzivha"]
[216,"ASA0428","Crisp Visitors Arm Chair","Icon Business Furniture","2019-10-19",null,"M Mabuse",224,2020,null,null,1886,"Good",null,"K Madzivha"]
[217,"ASA0435","Crisp Visitors Arm Chair","Icon Business Furniture","2019-10-19",null,"C Morgan",226,2020,null,null,1886,"Good",null,"K Madzivha"]
[218,"ASA0436","Crisp Visitors Arm Chair","Icon Business Furniture","2019-10-19",null,"C Morgan",226,2020,null,null,1886,"Good",null,"K Madzivha"]
[219,"ASA0418","Crisp Visitors Arm Chair","Icon Business Furniture","2019-10-19",null,"D Naiker",219,2020,null,null,1886,"Good",null,"K Madzivha"]
[220,"ASA0419","Crisp Visitors Arm Chair","Icon Business Furniture","2019-10-19",null,"D Naiker",219,2020,null,null,1886,"Good",null,"K Madzivha"]
[221,"ASA0442","Crisp Visitors Arm Chair","Icon Business Furniture","2019-10-19",null,"H Tladi",229,2020,null,null,1886,"Good",null,"K Madzivha"]
[222,"ASA0443","Crisp Visitors Arm Chair","Icon Business Furniture","2019-10-19",null,"H Tladi",229,2020,null,null,1886,"Good",null,"K Madzivha"]
[223,"ASA0459","Crisp Visitors Arm Chair","Icon Business Furniture","2019-10-19",null,"O Mvundlela",245,2020,null,null,1886,"Good",null,"K Madzivha"]
[224,"ASA0460","Crisp Visitors Arm Chair","Icon Business Furniture","2019-10-19",null,"O Mvundlela",245,2020,null,null,1886,"Good",null,"K Madzivha"]
[225,"ASA0307","Crisp Visitors Arm Chair","Icon Business Furniture","2019-10-19",null,"K Madzivha",220,2020,null,null,1886,"Good",null,"K Madzivha"]
[226,"ASA0308","Crisp Visitors Arm Chair","Icon Business Furniture","2019-10-19",null,"K Madzivha",220,2020,null,null,1886,"Good",null,"K Madzivha"]
[227,"ASA0452","Crisp Visitors Arm Chair","Icon Business Furniture","2019-10-19",null,"L Majoro",237,2020,null,null,1886,"Good",null,"K Madzivha"]
[228,"ASA0455","Crisp Visitors Arm Chair","Icon Business Furniture","2019-10-19",null,"L Majoro",237,2020,null,null,1886,"Good",null,"K Madzivha"]
[229,"ASA0559","Crisp Visitors Arm Chair","Icon Business Furniture","2019-10-19",null,"S Ndamashe",231,2020,null,null,1886,"Good",null,"K Madzivha"]
[230,"ASA0560","Crisp Visitors Arm Chair","Icon Business Furniture","2019-10-19",null,"S Ndamashe",231,2020,null,null,1886,"Good",null,"K Madzivha"]
[231,"ASA0320","Crisp Visitors Arm Chair","Icon Business Furniture","2019-10-19",null,"S Skosana",205,2020,null,null,1886,"Good",null,"K Madzivha"]
[232,"ASA0321","Crisp Visitors Arm Chair","Icon Business Furniture","2019-10-19",null,"S Skosana",205,2020,null,null,1886,"Good",null,"K Madzivha"]
[233,"ASA0351","Crisp Visitors Arm Chair","Icon Business Furniture","2019-10-19",null,"T Zama",207,2020,null,null,1886,"Good",null,"K Madzivha"]
[234,"ASA0352","Crisp Visitors Arm Chair","Icon Business Furniture","2019-10-19",null,"T Zama",207,2020,null,null,1886,"Good",null,"K Madzivha"]
[235,"ASA0360","Crisp Visitors Arm Chair","Icon Business Furniture","2019-10-19",null,"I Masekoa",209,2020,null,null,1886,"Good",null,"K Madzivha"]
[236,"ASA0361","Crisp Visitors Arm Chair","Icon Business Furniture","2019-10-19",null,"I Masekoa",209,2020,null,null,1886,"Good",null,"K Madzivha"]
[237,"ASA0369","Crisp Visitors Arm Chair","Icon Business Furniture","2019-10-19",null,"R Singh",208,2020,null,null,1886,"Good",null,"K Madzivha"]
[238,"ASA0370","Crisp Visitors Arm Chair","Icon Business Furniture","2019-10-19",null,"R Singh",208,2020,null,null,1886,"Good",null,"K Madzivha"]
[239,"ASA0377","Crisp Visitors Arm Chair","Icon Business Furniture","2019-10-19",null,"HR",212,2020,null,null,1886,"Good",null,"K Madzivha"]
[240,"ASA0379","Crisp Visitors Arm Chair","Icon Business Furniture","2019-10-19",null,"HR",212,2020,null,null,1886,"Good",null,"K Madzivha"]
[241,"ASA0383","Crisp Visitors Arm Chair","Icon Business Furniture","2019-10-19",null,"T Mtolo",214,2020,null,null,1886,"Good",null,"K Madzivha"]
[242,"ASA0384","Crisp Visitors Arm Chair","Icon Business Furniture","2019-10-19",null,"T Mtolo",214,2020,null,null,1886,"Good",null,"K Madzivha"]
[243,"ASA0362","Crisp Visitors Arm Chair","Icon Business Furniture","2019-10-19",null,"L Makwedini",210,2020,null,null,1886,"Good",null,"K Madzivha"]
[244,"ASA0363","Crisp Visitors Arm Chair","Icon Business Furniture","2019-10-19",null,"L Makwedini",210,2020,null,null,1886,"Good",null,"K Madzivha"]
[245,"ASA0393","Crisp Visitors Arm Chair","Icon Business Furniture","2019-10-19",null,"Canteen",216,2020,null,null,1886,"Good",null,"K Madzivha"]
[246,"ASA0394","Crisp Visitors Arm Chair","Icon Business Furniture","2019-10-19",null,"Canteen",216,2020,null,null,1886,"Good",null,"K Madzivha"]
[247,"ASA1125","100 pc Toolkit ","Zi Projects (Pty) Ltd","2019-07-19",null,"K Madzivha",220,2020,null,null,4750,"Good",null,"K Madzivha"]
[248,null,"Lock Padlock Brass Key","Lion Bridge Garden and Hardware","2019-06-13",null,"C Morgan",226,2020,null,null,352,"Good",null,"K Madzivha"]
[249,null,"Pik (Head and handle)","Zi Projects (Pty) Ltd","2019-07-19",null,"L Makwedini",220,2020,null,null,{"$f":"2500/4","v":625},"Good",null,"K Madzivha"]
[250,null,"Shovel/Spade","Zi Projects (Pty) Ltd","2019-07-20",null,"L Makwedini",220,2020,null,null,{"$f":"2500/4","v":625},"Good",null,"K Madzivha"]
[251,null,"Shovel/Spade","Zi Projects (Pty) Ltd","2019-07-21",null,"L Makwedini",220,2020,null,null,625,"Good",null,"K Madzivha"]
[252,null,"Shovel/Spade","Zi Projects (Pty) Ltd","2019-07-22",null,"L Makwedini",220,2020,null,null,625,"Good",null,"K Madzivha"]
[253,"Not Tagged","South African Flags","Cherry Jam Solutions","2019-04-11",null,"Boardroom",242,2020,null,null,{"$f":"3720/6","v":620},"Good",null,"K Madzivha"]
[254,"Not Tagged","South African Flags","Cherry Jam Solutions","2019-04-11",null,"Boardroom",242,2020,null,null,{"$f":"3720/6","v":620},"Good",null,"K Madzivha"]
[255,"Not Tagged","South African Flags","Cherry Jam Solutions","2019-04-11",null,"Small Boardroom",204,2020,null,null,620,"Good",null,"K Madzivha"]
[256,"Not Tagged","South African Flags","Cherry Jam Solutions","2019-04-11",null,"Small Boardroom",204,2020,null,null,620,"Good",null,"K Madzivha"]
[257,"Not Tagged","South African Flags","Cherry Jam Solutions","2019-04-11",null,"Small Boardroom",219,2020,null,null,620,"Good",null,"K Madzivha"]
[258,"Not Tagged","South African Flags","Cherry Jam Solutions","2019-04-11",null,"Small Boardroom",219,2020,null,null,620,"Good",null,"K Madzivha"]
[259,"ASA0286","Brass Poles","Cherry Jam Solutions","2019-04-11",null,"Boardroom",242,2020,null,null,{"$f":"5760/6","v":960},"Good",null,"K Madzivha"]
[260,"ASA0287","Brass Poles","Cherry Jam Solutions","2019-04-11",null,"Boardroom",242,2020,null,null,{"$f":"5760/6","v":960},"Good",null,"K Madzivha"]
[261,"ASA0285","Brass Poles","Cherry Jam Solutions","2019-04-11",null,"Reception",202,2020,null,null,960,"Good",null,"K Madzivha"]
[262,"ASA0284","Brass Poles","Cherry Jam Solutions","2019-04-11",null,"Reception",202,2020,null,null,960,"Good",null,"K Madzivha"]
[263,"ASA1120","Brass Poles","Cherry Jam Solutions","2019-04-11",null,"Canteen",null,2020,null,null,960,"Good",null,"K Madzivha"]
[264,"ASA1126","Brass Poles","Cherry Jam Solutions","2019-04-11",null,"Small Boardroom",204,2020,null,null,960,"Good",null,"K Madzivha"]
[265,null,"Pop Up Banners","Mathsway Trading","2019-12-04",null,"C Morgan",226,2020,null,null,{"$f":"8700/2","v":4350},"Good",null,"K Madzivha"]
[266,null,"Pop Up Banners","Mathsway Trading","2019-12-04",null,"C Morgan",226,2020,null,null,4350,"Good",null,"K Madzivha"]
[267,"ASA1103","Dell WD19 USBC Dock","Neo Technologies","2020-01-30",null,"K Khomani",217,2020,null,null,{"$f":"11494.25/5","v":2298.85},"Good",null,"K Madzivha"]
[268,"ASA1104","Dell WD19 USBC Dock","Neo Technologies","2020-01-30",null,"L Mafolo",217,2020,null,null,{"$f":"11494.25/5","v":2298.85},"Good",null,"K Madzivha"]
[269,"ASA1105","Dell WD19 USBC Dock","Neo Technologies","2020-01-30",null,"J Odhiambo",216,2020,null,null,2298.85,"Good",null,"K Madzivha"]
[270,"ASA1106","Dell WD19 USBC Dock","Neo Technologies","2020-01-30",null,"L Majoro",237,2020,null,null,2298.85,"Good",null,"K Madzivha"]
[271,"ASA1107","Dell WD19 USBC Dock","Neo Technologies","2020-01-30",null,"D Naiker",219,2020,null,null,2298.85,"Good",null,"K Madzivha"]
[272,"ASA1242","Voice Recorder","Assent Group","2020-01-30",null,"O Mvundlela",245,2020,null,null,4485,"Good",null,"K Madzivha"]
[273,"ASA1262","Microwave","Insignia Consulting","2020-05-19",null,"Canteen",null,2021,null,null,2295,"Good",null,"K Madzivha"]
[274,"ASA1263","Kettle","Insignia Consulting","2020-05-19",null,"Canteen",null,2021,null,null,472,"Good",null,"K Madzivha"]
[275,"ASA1201","ACTA High Chairs","Icon Business Furniture","2021-02-04",null,"Main Boardroom",242,2021,null,null,{"$f":"3655*1.15","v":4203.25},"Good",null,"K Madzivha"]
[276,"ASA1202","ACTA High Chairs","Icon Business Furniture","2021-02-04",null,"Main Boardroom",242,2021,null,null,{"$f":"3655*1.15","v":4203.25},"Good",null,"K Madzivha"]
[277,"ASA1203","ACTA High Chairs","Icon Business Furniture","2021-02-04",null,"Main Boardroom",242,2021,null,null,4203.25,"Good",null,"K Madzivha"]
[278,"ASA1204","ACTA High Chairs","Icon Business Furniture","2021-02-04",null,"Main Boardroom",242,2021,null,null,4203.25,"Good",null,"K Madzivha"]
[279,"ASA1205","ACTA High Chairs","Icon Business Furniture","2021-02-04",null,"Main Boardroom",242,2021,null,null,4203.25,"Good",null,"K Madzivha"]
[280,"ASA1206","ACTA High Chairs","Icon Business Furniture","2021-02-04",null,"Main Boardroom",242,2021,null,null,4203.25,"Good",null,"K Madzivha"]
[281,"ASA1207","ACTA High Chairs","Icon Business Furniture","2021-02-04",null,"Main Boardroom",242,2021,null,null,4203.25,"Good",null,"K Madzivha"]
[282,"ASA1208","ACTA High Chairs","Icon Business Furniture","2021-02-04",null,"Main Boardroom",242,2021,null,null,4203.25,"Good",null,"K Madzivha"]
[283,"ASA1209","ACTA High Chairs","Icon Business Furniture","2021-02-04",null,"Main Boardroom",242,2021,null,null,4203.25,"Good",null,"K Madzivha"]
[284,"ASA1210","ACTA High Chairs","Icon Business Furniture","2021-02-04",null,"Main Boardroom",242,2021,null,null,4203.25,"Good",null,"K Madzivha"]
[285,"ASA1211","ACTA High Chairs","Icon Business Furniture","2021-02-04",null,"Main Boardroom",242,2021,null,null,4203.25,"Good",null,"K Madzivha"]
[286,"ASA1212","ACTA High Chairs","Icon Business Furniture","2021-02-04",null,"Main Boardroom",242,2021,null,null,4203.25,"Good",null,"K Madzivha"]
[287,"ASA1213","ACTA High Chairs","Icon Business Furniture","2021-02-04",null,"Main Boardroom",242,2021,null,null,4203.25,"Good",null,"K Madzivha"]
[288,"ASA1214","ACTA High Chairs","Icon Business Furniture","2021-02-04",null,"Main Boardroom",242,2021,null,null,4203.25,"Good",null,"K Madzivha"]
[289,"ASA1215","ACTA High Chairs","Icon Business Furniture","2021-02-04",null,"Main Boardroom",242,2021,null,null,4203.25,"Good",null,"K Madzivha"]
[290,"ASA1216","ACTA High Chairs","Icon Business Furniture","2021-02-04",null,"Main Boardroom",242,2021,null,null,4203.25,"Good",null,"K Madzivha"]
[291,"ASA1217","ACTA High Chairs","Icon Business Furniture","2021-02-04",null,"Main Boardroom",242,2021,null,null,4203.25,"Good",null,"K Madzivha"]
[292,"ASA1218","ACTA High Chairs","Icon Business Furniture","2021-02-04",null,"Main Boardroom",242,2021,null,null,4203.25,"Good",null,"K Madzivha"]
[293,"ASA1219","ACTA High Chairs","Icon Business Furniture","2021-02-04",null,"Main Boardroom",242,2021,null,null,4203.25,"Good",null,"K Madzivha"]
[294,"ASA1220","ACTA High Chairs","Icon Business Furniture","2021-02-04",null,"Main Boardroom",242,2021,null,null,4203.25,"Good",null,"K Madzivha"]
[295,"ASA1221","ACTA High Chairs","Icon Business Furniture","2021-02-04",null,"Main Boardroom",242,2021,null,null,4203.25,"Good",null,"K Madzivha"]
[296,"ASA1222","ACTA High Chairs","Icon Business Furniture","2021-02-04",null,"Main Boardroom",242,2021,null,null,4203.25,"Good",null,"K Madzivha"]
[297,"ASA1223","ACTA High Chairs","Icon Business Furniture","2021-02-04",null,"Main Boardroom",242,2021,null,null,4203.25,"Good",null,"K Madzivha"]
[298,"ASA1224","ACTA High Chairs","Icon Business Furniture","2021-02-04",null,"Main Boardroom",242,2021,null,null,4203.25,"Good",null,"K Madzivha"]
[299,"ASA1225","ACTA High Chairs","Icon Business Furniture","2021-02-04",null,"Main Boardroom",242,2021,null,null,4203.25,"Good",null,"K Madzivha"]
[300,"ASA1226","ACTA High Chairs","Icon Business Furniture","2021-02-04",null,"Main Boardroom",242,2021,null,null,4203.25,"Good",null,"K Madzivha"]
[301,"ASA1227","ACTA High Chairs","Icon Business Furniture","2021-02-04",null,"Main Boardroom",242,2021,null,null,4203.25,"Good",null,"K Madzivha"]
[302,"ASA1228","ACTA High Chairs","Icon Business Furniture","2021-02-04",null,"Main Boardroom",242,2021,null,null,4203.25,"Good",null,"K Madzivha"]
[303,"ASA1229","ACTA Medium Chairs","Icon Business Furniture","2021-02-04",null,"R Somanje",218,2021,null,null,{"$f":"3290*1.15","v":3783.4999999999995},"Good",null,"K Madzivha"]
[304,"ASA1230","ACTA Medium Chairs","Icon Business Furniture","2021-02-04",null,"R Somanje",218,2021,null,null,{"$f":"3290*1.15","v":3783.4999999999995},"Good",null,"K Madzivha"]
[305,"ASA1231","Crisp Visitors Arm Chair","Icon Business Furniture","2019-10-19",null,"Canteen",242,2021,null,null,1886,"Good",null,"K Madzivha"]
[306,"ASA1232","Crisp Visitors Arm Chair","Icon Business Furniture","2019-10-19",null,"Canteen",242,2021,null,null,1886,"Good",null,"K Madzivha"]
[307,"ASA1233","Crisp Visitors Arm Chair","Icon Business Furniture","2019-10-19",null,"Canteen",242,2021,null,null,1886,"Good",null,"K Madzivha"]
[308,"ASA1234","Crisp Visitors Arm Chair","Icon Business Furniture","2019-10-19",null,"Canteen",242,2021,null,null,1886,"Good",null,"K Madzivha"]
[309,"ASA0591","Cosmos Single seater 1","Icon Business Furniture (Donated)","29/10/2019",null,"M Mabuse",226,2021,null,null,1886,"Good",null,"K Madzivha"]
[311,"ASA1241","ACTA High Chair","Icon Business Furniture","2021-02-04",null,"R Somanje",218,2021,null,null,4203.25,"Good",null,"K Madzivha"]
[312,"ASA1247","ACTA High Chair","Icon Business Furniture","2021-02-04",null,"S Molete",213,2021,null,null,4203.25,"Good",null,"K Madzivha"]
[313,"ASA1248","ACTA High Chair","Icon Business Furniture","2021-02-04",null,"J Odhiambo",216,2021,null,null,4203.25,"Good",null,"K Madzivha"]
[314,"ASA1249","ACTA Medium Chair","Icon Business Furniture","2021-02-04",null,"J Odhiambo",216,2021,null,null,3783.5,null,null,"K Madzivha"]
[315,"ASA1250","ACTA Medium Chair","Icon Business Furniture","2021-02-04",null,"J Odhiambo",216,2021,null,null,3783.5,null,null,"K Madzivha"]
[317,"ASA1256","ACTA High Chair","Icon Business Furniture","2021-02-04",null,"L Magalo",234,2021,null,null,4203.25,null,null,"K Madzivha"]
[318,"ASA1261","ACTA High Chair","Icon Business Furniture","2021-02-04",null,"D Naiker",219,2021,null,null,4203.25,null,null,"K Madzivha"]
[310,"ASA1043","Dell WD19 USBC Dock",{"$nulls":3},"M Mabuse",226,2021,{"$nulls":5},"K Madzivha"]
[316,"ASA0615","Cosmos Single seater 1","Icon Business Furniture (Donated)",null,null,"Z Thusi",232,2021,{"$nulls":5},"K Madzivha"]

{"sheet":"2020 2021","index":1,"n_rows":50,"n_cols":15,"rows_kept":50,"hidden":true}
[]
[]
[]
[{"$nulls":6},"2020/2021"]
[]
[]
[]
[]
[]
[273,"ASA1262","Microwave","Insignia Consulting","2020-05-19",null,"Canteen",null,2021,null,null,2295,"Good",null,"K Madzivha"]
[274,"ASA1263","Kettle","Insignia Consulting","2020-05-19",null,"Canteen",null,2021,null,null,472,"Good",null,"K Madzivha"]
[275,"ASA1201","ACTA High Chairs","Icon Business Furniture","2021-02-04",null,"Main Boardroom",242,2021,null,null,{"$f":"3655*1.15","v":4203.25},"Good",null,"K Madzivha"]
[276,"ASA1202","ACTA High Chairs","Icon Business Furniture","2021-02-04",null,"Main Boardroom",242,2021,null,null,{"$f":"3655*1.15","v":4203.25},"Good",null,"K Madzivha"]
[277,"ASA1203","ACTA High Chairs","Icon Business Furniture","2021-02-04",null,"Main Boardroom",242,2021,null,null,4203.25,"Good",null,"K Madzivha"]
[278,"ASA1204","ACTA High Chairs","Icon Business Furniture","2021-02-04",null,"Main Boardroom",242,2021,null,null,4203.25,"Good",null,"K Madzivha"]
[279,"ASA1205","ACTA High Chairs","Icon Business Furniture","2021-02-04",null,"Main Boardroom",242,2021,null,null,4203.25,"Good",null,"K Madzivha"]
[280,"ASA1206","ACTA High Chairs","Icon Business Furniture","2021-02-04",null,"Main Boardroom",242,2021,null,null,4203.25,"Good",null,"K Madzivha"]
[281,"ASA1207","ACTA High Chairs","Icon Business Furniture","2021-02-04",null,"Main Boardroom",242,2021,null,null,4203.25,"Good",null,"K Madzivha"]
[282,"ASA1208","ACTA High Chairs","Icon Business Furniture","2021-02-04",null,"Main Boardroom",242,2021,null,null,4203.25,"Good",null,"K Madzivha"]
[283,"ASA1209","ACTA High Chairs","Icon Business Furniture","2021-02-04",null,"Main Boardroom",242,2021,null,null,4203.25,"Good",null,"K Madzivha"]
[284,"ASA1210","ACTA High Chairs","Icon Business Furniture","2021-02-04",null,"Main Boardroom",242,2021,null,null,4203.25,"Good",null,"K Madzivha"]
[285,"ASA1211","ACTA High Chairs","Icon Business Furniture","2021-02-04",null,"Main Boardroom",242,2021,null,null,4203.25,"Good",null,"K Madzivha"]
[286,"ASA1212","ACTA High Chairs","Icon Business Furniture","2021-02-04",null,"Main Boardroom",242,2021,null,null,4203.25,"Good",null,"K Madzivha"]
[287,"ASA1213","ACTA High Chairs","Icon Business Furniture","2021-02-04",null,"Main Boardroom",242,2021,null,null,4203.25,"Good",null,"K Madzivha"]
[288,"ASA1214","ACTA High Chairs","Icon Business Furniture","2021-02-04",null,"Main Boardroom",242,2021,null,null,4203.25,"Good",null,"K Madzivha"]
[289,"ASA1215","ACTA High Chairs","Icon Business Furniture","2021-02-04",null,"Main Boardroom",242,2021,null,null,4203.25,"Good",null,"K Madzivha"]
[290,"ASA1216","ACTA High Chairs","Icon Business Furniture","2021-02-04",null,"Main Boardroom",242,2021,null,null,4203.25,"Good",null,"K Madzivha"]
[291,"ASA1217","ACTA High Chairs","Icon Business Furniture","2021-02-04",null,"Main Boardroom",242,2021,null,null,4203.25,"Good",null,"K Madzivha"]
[292,"ASA1218","ACTA High Chairs","Icon Business Furniture","2021-02-04",null,"Main Boardroom",242,2021,null,null,4203.25,"Good",null,"K Madzivha"]
[293,"ASA1219","ACTA High Chairs","Icon Business Furniture","2021-02-04",null,"Main Boardroom",242,2021,null,null,4203.25,"Good",null,"K Madzivha"]
[294,"ASA1220","ACTA High Chairs","Icon Business Furniture","2021-02-04",null,"Main Boardroom",242,2021,null,null,4203.25,"Good",null,"K Madzivha"]
[295,"ASA1221","ACTA High Chairs","Icon Business Furniture","2021-02-04",null,"Main Boardroom",242,2021,null,null,4203.25,"Good",null,"K Madzivha"]
[296,"ASA1222","ACTA High Chairs","Icon Business Furniture","2021-02-04",null,"Main Boardroom",242,2021,null,null,4203.25,"Good",null,"K Madzivha"]
[297,"ASA1223","ACTA High Chairs","Icon Business Furniture","2021-02-04",null,"Main Boardroom",242,2021,null,null,4203.25,"Good",null,"K Madzivha"]
[298,"ASA1224","ACTA High Chairs","Icon Business Furniture","2021-02-04",null,"Main Boardroom",242,2021,null,null,4203.25,"Good",null,"K Madzivha"]
[299,"ASA1225","ACTA High Chairs","Icon Business Furniture","2021-02-04",null,"Main Boardroom",242,2021,null,null,4203.25,"Good",null,"K Madzivha"]
[300,"ASA1226","ACTA High Chairs","Icon Business Furniture","2021-02-04",null,"Main Boardroom",242,2021,null,null,4203.25,"Good",null,"K Madzivha"]
[301,"ASA1227","ACTA High Chairs","Icon Business Furniture","2021-02-04",null,"Main Boardroom",242,2021,null,null,4203.25,"Good",null,"K Madzivha"]
[302,"ASA1228","ACTA High Chairs","Icon Business Furniture","2021-02-04",null,"Main Boardroom",242,2021,null,null,4203.25,"Good",null,"K Madzivha"]
[303,"ASA1229","ACTA Medium Chairs","Icon Business Furniture","2021-02-04",null,"R Somanje",218,2021,null,null,{"$f":"3290*1.15","v":3783.4999999999995},"Good",null,"K Madzivha"]
[304,"ASA1230","ACTA Medium Chairs","Icon Business Furniture","2021-02-04",null,"R Somanje",218,2021,null,null,{"$f":"3290*1.15","v":3783.4999999999995},"Good",null,"K Madzivha"]
[311,"ASA1241","ACTA High Chair","Icon Business Furniture","2021-02-04",null,"R Somanje",218,2021,null,null,4203.25,"Good",null,"K Madzivha"]
[312,"ASA1247","ACTA High Chair","Icon Business Furniture","2021-02-04",null,"S Molete",213,2021,null,null,4203.25,"Good",null,"K Madzivha"]
[313,"ASA1248","ACTA High Chair","Icon Business Furniture","2021-02-04",null,"J Odhiambo",216,2021,null,null,4203.25,"Good",null,"K Madzivha"]
[314,"ASA1249","ACTA Medium Chair","Icon Business Furniture","2021-02-04",null,"J Odhiambo",216,2021,null,null,3783.5,"Good",null,"K Madzivha"]
[315,"ASA1250","ACTA Medium Chair","Icon Business Furniture","2021-02-04",null,"J Odhiambo",216,2021,null,null,3783.5,"Good",null,"K Madzivha"]
[317,"ASA1256","ACTA High Chair","Icon Business Furniture","2021-02-04",null,"L Magalo",234,2021,null,null,4203.25,"Good",null,"K Madzivha"]
[318,"ASA1261","ACTA High Chair","Icon Business Furniture","2021-02-04",null,"D Naiker",219,2021,null,null,4203.25,"Good",null,"K Madzivha"]
[{"$nulls":11},{"$f":"SUM(L12:L48)-L45-L46-L41-L40","v":138707.25},null,null,{"$f":"L49/72","v":{"v":1926.4895833333333,"d":"1,926.49"}}]
[{"$nulls":14},{"$f":"O49*2","v":{"v":3852.9791666666665,"d":"3,852.98"}}]

{"sheet":"Minor Old","index":2,"n_rows":126,"n_cols":14,"rows_kept":126}
{"$rows_empty":9}
["Tag","Descr","Status","Acq Date","Profile ID","Serial ID","Custodian","Location","Year","Cost","Scrap Asset?","Verify Date","Verified By","Detail"]
["ASA0110","White Board","I","2019-02-21","New","No serial ID","L Magalo","234",2019,{"v":1965,"d":"1,965.00"},"No","08/03/2019","K Madzivha","New asset purchased"]
["ASA0492","White Board","I","2019-02-21","New","No serial ID","Boardroom","242",2019,{"v":1965,"d":"1,965.00"}]
["ASA0204","President Frame","I","2018-04-01","CSIR","No serial ID","Test Site","Test Site",2019,{"v":250,"d":"250.00"},"No","08/03/2019","K Madzivha","Old CSIR Asset brought over, deemed value"]
["ASA0205","Vice President Frame","I","2018-04-01","CSIR","No serial ID","Test Site","Test Site",2019,{"v":250,"d":"250.00"},"No","08/03/2019","K Madzivha","Old CSIR Asset brought over, deemed value"]
["ASA0206","Minister Frame","I","2018-04-01","CSIR","No serial ID","Test Site","Test Site",2019,{"v":250,"d":"250.00"},"No","08/03/2019","K Madzivha","Old CSIR Asset brought over, deemed value"]
["ASA0207","Dep Minister Frame","I","2018-04-01","CSIR","No serial ID","Test Site","Test Site",2019,{"v":250,"d":"250.00"},"No","08/03/2019","K Madzivha","Old CSIR Asset brought over, deemed value"]
["ASA0220","Projector Screen","I","2018-04-01","CSIR","No serial ID","Boardroom","211",2019,{"v":600,"d":"600.00"},"No","08/03/2019","K Madzivha","Old CSIR Asset brought over, deemed value"]
["ASA0209","White Board","I","2019-02-21","New","No serial ID","C Morgan","226",2019,{"v":1965,"d":"1,965.00"},"No","08/03/2019","K Madzivha","New asset purchased"]
["ASA1244","Folding Tables","I",null,null,"No serial ID","C Morgan","226",{"$nulls":3},"04/03/2021","K Madzivha","Less than R5000.00 and written off in the year of purchase"]
["ASA1243","Folding Tables","I",null,null,"No serial ID","C Morgan","226",{"$nulls":3},"04/03/2021","K Madzivha","Less than R5000.00 and written off in the year of purchase"]
["ASA0149","Folding Tables","I",null,null,"No serial ID","C Morgan","226",{"$nulls":3},"04/03/2021","K Madzivha","Less than R5000.00 and written off in the year of purchase"]
["ASA1040","Dell Docking station K16A","I",null,null,"No serial ID","C Morgan","226",{"$nulls":3},"04/03/2021","K Madzivha","Less than R5000.00 and written off in the year of purchase"]
["ASA1041","Dell Monitor 23''","I",null,null,"No serial ID","C Morgan","226",{"$nulls":3},"04/03/2021","K Madzivha","Less than R5000.00 and written off in the year of purchase"]
["ASA0047","White Board","I","2019-02-21","New","No serial ID","CS","212",2019,{"v":1965,"d":"1,965.00"},"No","08/03/2019","K Madzivha","New asset purchased"]
["ASA0273","White Board","I","2019-02-21","New","No serial ID","H Tladi",null,null,{"v":1965,"d":"1,965.00"},"No","08/03/2019","K Madzivha","Old CSIR Asset brought over, deemed value"]
["ASA1029","Dell Docking station K16A","I",null,null,"No serial ID","H Tladi","229",{"$nulls":3},"04/03/2021","K Madzivha","Less than R5000.00 and written off in the year of purchase"]
["ASA1075","Dell Docking station K16A","I",null,null,"No serial ID","HR","212",2019,3500]
["ASA1071","Dell Ultra Sharp 24","I",null,null,"No serial ID","HR","212",2019,4800]
["ASA0033","White Board","I","2019-02-21","New","No serial ID","I Masekoa","209",2019,{"v":1956,"d":"1,956.00"},"No","08/03/2019","K Madzivha","New asset purchased"]
["ASA1061","Dell Docking station K16A","I",null,null,"No serial ID","I Masekoa","230",{"$nulls":3},"04/03/2022","K Madzivha","Less than R5000.00 and written off in the year of purchase"]
["ASA1064","Dell Ultra Sharp 24","I",null,null,"No serial ID","I Masekoa","231",{"$nulls":3},"04/03/2023","K Madzivha","Less than R5000.00 and written off in the year of purchase"]
["ASA0071","Standing Heater","I","2018-05-24","New","No serial ID","D Mamaregane","222",2019,{"$f":"1160.5/3","v":{"v":386.8333333333333,"d":"386.83"}},"No","08/03/2019","K Madzivha","Less than R5000.00 and written off in the year of purchase"]
["ASA0065","Agrement Painting","I","2018-04-01","CSIR","No serial ID","J Odhiambo","216",2019,{"v":400,"d":"400.00"},"No","08/03/2019","K Madzivha","Old CSIR Asset brought over, deemed value"]
["ASA0192","Vase CEO","I","1999-04-01","CSIR","No serial ID","J Odhiambo","216",2019,{"$f":"(12892/2)/5","v":{"v":1289.2,"d":"1,289.20"}},"No","08/03/2019","K Madzivha","Old CSIR Asset brought over, on old asset register"]
["ASA0193","President Frame","I","2018-04-01","CSIR","No serial ID","J Odhiambo","216",2019,{"v":250,"d":"250.00"},"No","08/03/2019","K Madzivha","Old CSIR Asset brought over, deemed value"]
["ASA0194","Minister Frame","I","2018-04-01","CSIR","No serial ID","J Odhiambo","216",2019,{"v":250,"d":"250.00"},"No","08/03/2019","K Madzivha","Old CSIR Asset brought over, deemed value"]
["ASA0195","Dep Minister Frame","I","2018-04-01","CSIR","No serial ID","J Odhiambo","216",2019,{"v":250,"d":"250.00"},"No","08/03/2019","K Madzivha","Old CSIR Asset brought over, deemed value"]
["ASA0079","White Board","I","2019-02-21","New","No serial ID","K Madzivha","220",2019,{"v":1965,"d":"1,965.00"},"No","08/03/2019","K Madzivha","New asset purchased"]
["ASA0144","Microwave","I","2018-04-01","CSIR","No serial ID","Kitchen","251",2019,{"v":550,"d":"550.00"},"No","08/03/2019","K Madzivha","Old CSIR Asset brought over, deemed value"]
["ASA0145","Fridge","I","2018-04-01","CSIR","No serial ID","Kitchen","251",2019,{"v":1500,"d":"1,500.00"},"No","08/03/2019","K Madzivha","Old CSIR Asset brought over, deemed value"]
["ASA0146","Paper Dispenser","I","2019-02-28","CSIR","No serial ID","Kitchen","251",2019,{"v":2390,"d":"2,390.00"},"No","08/03/2019","K Madzivha","New asset purchased"]
["ASA1122","Water Cooler","I","2019/03/07","New","No serial ID","Kitchen","251",2019,{"v":3850,"d":"3,850.00"},"No","08/03/2019","K Madzivha","New asset purchased"]
["ASA0147","Kitchen Trolley","I","2005-02-02","Old","No serial ID","Kitchen","251",2019,175,"No","03/03/2019","K Madzivha","Less than R5000.00 and written off in the year of purchase"]
["ASA0113","Laminator","I","2018-03-29","New","No serial ID","L Majoro","237",2019,{"v":4326.3,"d":"4,326.30"},"No","08/03/2019","K Madzivha","New asset purchased"]
["ASA0036","White Board","I","2019-02-21","New","No serial ID","L Makwedini","210",2019,{"v":1965,"d":"1,965.00"},"No","08/03/2019","K Madzivha","New asset purchased"]
["ASA0118","First Aid Kit","I","2018-04-01","CSIR","No serial ID","L Mokone","239",2019,{"v":1500,"d":"1,500.00"},"No","08/03/2019","K Madzivha","Old CSIR Asset brought over, deemed value"]
["ASA0092","White Board","I","2019-02-21","New","No serial ID","M Mabuse","224",2019,{"v":1965,"d":"1,965.00"},"No","08/03/2019","K Madzivha","New asset purchased"]
["ASA1044","Dell Monitor 23''","I",null,null,"No serial ID","M Mabuse","226",null,null,"No","03/03/2020","K Madzivha","Less than R5000.00 and written off in the year of purchase"]
["ASA0208","White Board","I","2019-02-21","New","No serial ID","M Mahlaule","239",2019,{"v":1965,"d":"1,965.00"},"No","08/03/2019","K Madzivha","New asset purchased"]
["ASA1035","Dell Docking station K16A","I",null,null,"No serial ID","M Mahlaule","239",{"$nulls":3},"04/03/2021","K Madzivha","Less than R5000.00 and written off in the year of purchase"]
["ASA1034","Dell Ultra Sharp 24","I",null,null,"No serial ID","M Mahlaule","239",{"$nulls":3},"04/03/2021","K Madzivha","Less than R5000.00 and written off in the year of purchase"]
["ASA0133","Whiteboard Planner","I","2019-02-21","New","No serial ID","O Mvundlela","245",2019,{"v":1732,"d":"1,732.00"},"No","08/03/2019","K Madzivha","New asset purchased"]
["ASA0138","White Board","I","2019-02-21","New","No serial ID","O Mvundlela","245",2019,{"v":1965,"d":"1,965.00"},"No","08/03/2019","K Madzivha","New asset purchased"]
["ASA1039","Dell Ultra Sharp 24","I",null,null,"No serial ID","O Mvundlela","245",{"$nulls":3},"04/03/2021","K Madzivha","Less than R5000.00 and written off in the year of purchase"]
["ASA1037","Dell Docking station K16A","I",null,null,"No serial ID","O Mvundlela","245",{"$nulls":3},"04/03/2021","K Madzivha","Less than R5000.00 and written off in the year of purchase"]
["ASA0125","White Board","I","2019-02-21","New","No serial ID","O Ramantsi","241",2019,{"v":1965,"d":"1,965.00"},"No","08/03/2019","K Madzivha","New asset purchased"]
["ASA0128","First Aid Kit","I","2018-04-01","CSIR","No serial ID","O Ramantsi","241",2019,{"v":1500,"d":"1,500.00"},"No","08/03/2019","K Madzivha","Old CSIR Asset brought over, deemed value"]
["ASA0129","First Aid Kit","I","2018-04-01","CSIR","No serial ID","O Ramantsi","241",2019,{"v":1500,"d":"1,500.00"},"No","08/03/2019","K Madzivha","Old CSIR Asset brought over, deemed value"]
["ASA1086","Dell Ultra Sharp 24","I",null,null,"No serial ID","O Ramantsi","241",{"$nulls":3},"04/03/2021","K Madzivha","Less than R5000.00 and written off in the year of purchase"]
["ASA0040","IN/OUT Board","I","15/05/2018","New","No serial ID","Passage",null,2019,{"$f":"4769.28/2","v":{"v":2384.64,"d":"2,384.64"}},"No","08/03/2019","K Madzivha","New asset purchased"]
["ASA0041","IN/OUT Board","I","15/05/2018","New","No serial ID","Passage",null,2019,{"$f":"4769.28/2","v":{"v":2384.64,"d":"2,384.64"}},"No","08/03/2019","K Madzivha","New asset purchased"]
["ASA0196","Bulletin Board 3000x1200","I","2019-05-15","New","No serial ID","Passage","Passage",2019,{"v":1962.19,"d":"1,962.19"},"No","08/03/2019","K Madzivha","New asset purchased"]
["ASA0197","Bulletin Board 1500x1200","I","2019-05-15","New","No serial ID","Passage","Passage",2019,{"v":1032.41,"d":"1,032.41"},"No","08/03/2019","K Madzivha","New asset purchased"]
["ASA0148","Glass Cabinet","I","2005-02-02","Old","No serial ID","Printer Room","249",2019,{"v":3004.56,"d":"3,004.56"},"No","03/03/2018","K Madzivha","Less than R5000.00 and written off in the year of purchase"]
["ASA0031","White Board","I","2019-02-21","New","No serial ID","R Singh","208",2019,{"v":1965,"d":"1,965.00"},"No","08/03/2019","K Madzivha","New asset purchased"]
["ASA0072","Air Purifier","I","17/04/2018","New","No serial ID","R Somanje","218",2019,527.56,"No","08/03/2019","K Madzivha","Less than R5000.00 and written off in the year of purchase"]
["ASA0074","White Planner Board","I","2019-02-21","New","No serial ID","R Somanje","218",2019,{"v":1732,"d":"1,732.00"},"No","08/03/2019","K Madzivha","New asset purchased"]
["ASA1031","Dell Docking station K16A","I",null,null,"No serial ID","R Somanje","218",2019,null,"No","03/03/2021","K Madzivha","Less than R5000.00 and written off in the year of purchase"]
["ASA0004","Watercooler","I","2017-12-19","New","No serial ID","Reception","202",2019,{"v":2709,"d":"2,709.00"},"No","08/03/2019","K Madzivha","Less than R5000.00 and written off in the year of purchase"]
["ASA0021","Tender Box ","I","2018-04-19","New","No serial ID","Reception","202",2019,{"v":4959,"d":"4,959.00"},"No","08/03/2019","K Madzivha","New asset purchased"]
["ASA0176","Plaques","I","2018-04-01","CSIR","No serial ID","Reception","202",2019,{"v":300,"d":"300.00"},"No","08/03/2019","K Madzivha","Old CSIR Asset brought over, deemed value"]
["ASA0177","Plaques","I","2018-04-01","CSIR","No serial ID","Reception","202",2019,{"v":300,"d":"300.00"},"No","08/03/2019","K Madzivha","Old CSIR Asset brought over, deemed value"]
["ASA0178","Pamphlet Stand","I","2018-04-01","CSIR","No serial ID","Reception","202",2019,{"v":250,"d":"250.00"},"No","08/03/2019","K Madzivha","Old CSIR Asset brought over, deemed value"]
["ASA0179","Brown Vase","I","1999-04-01","CSIR","No serial ID","Reception","202",2019,{"$f":"(12892/2)/5","v":{"v":1289.2,"d":"1,289.20"}},"No","08/03/2019","K Madzivha","Old CSIR Asset brought over, on old asset register"]
["ASA0180","Glass Frame 2 Sculpt","I","2018-04-01","CSIR","No serial ID","Reception","202",2019,{"v":250,"d":"250.00"},"No","08/03/2019","K Madzivha","Old CSIR Asset brought over, deemed value"]
["ASA0181","Glass Frame 1 Sculpt","I","2018-04-01","CSIR","No serial ID","Reception","202",2019,{"v":250,"d":"250.00"},"No","08/03/2019","K Madzivha","Old CSIR Asset brought over, deemed value"]
["ASA0182","Glass Frame 1 Sculpt","I","2018-04-01","CSIR","No serial ID","Reception","202",2019,{"v":250,"d":"250.00"},"No","08/03/2019","K Madzivha","Old CSIR Asset brought over, deemed value"]
["ASA0183","Glass Frame Mixed","I","2018-04-01","CSIR","No serial ID","Reception","202",2019,{"v":250,"d":"250.00"},"No","08/03/2019","K Madzivha","Old CSIR Asset brought over, deemed value"]
["ASA0184","President Frame","I","2018-04-01","CSIR","No serial ID","J Odhiambo","216",2019,{"v":250,"d":"250.00"},"No","08/03/2019","K Madzivha","Old CSIR Asset brought over, deemed value"]
["ASA0185","Picture Frame","I","2018-04-01","CSIR","No serial ID","J Odhiambo","216",2019,{"v":250,"d":"250.00"},"No","08/03/2019","K Madzivha","Old CSIR Asset brought over, deemed value"]
["ASA0186","Picture Frame","I","2018-04-01","CSIR","No serial ID","J Odhiambo","216",2019,{"v":250,"d":"250.00"},"No","08/03/2019","K Madzivha","Old CSIR Asset brought over, deemed value"]
["ASA0187","Minister Frame","I","2018-04-01","CSIR","No serial ID","J Odhiambo","216",2019,{"v":250,"d":"250.00"},"No","08/03/2019","K Madzivha","Old CSIR Asset brought over, deemed value"]
["ASA0188","Vase Long","I","1999-04-01","CSIR","No serial ID","Reception","202",2019,{"$f":"(12892/2)/5","v":{"v":1289.2,"d":"1,289.20"}},"No","08/03/2019","K Madzivha","Old CSIR Asset brought over, on old asset register"]
["ASA0189","Vase Thick","I","1999-04-01","CSIR","No serial ID","Reception","202",2019,{"$f":"(12892/2)/5","v":{"v":1289.2,"d":"1,289.20"}},"No","08/03/2019","K Madzivha","Old CSIR Asset brought over, on old asset register"]
["ASA0190","Vase Small","I","1999-04-01","CSIR","No serial ID","Reception","202",2019,{"$f":"(12892/2)/5","v":{"v":1289.2,"d":"1,289.20"}},"No","08/03/2019","K Madzivha","Old CSIR Asset brought over, on old asset register"]
[null,"OLYMPUS DIGITAL VOICE RECORDER","I","2012-03-26","GRANT","No serial ID","RSingh","208",2019,{"v":2192.11,"d":"2,192.11"},"No","08/03/2019","K Madzivha","Old CSIR Asset brought over, on old asset register"]
["ASA0070","Standing Fan","I","2018-05-24","New","No serial ID","S Molete","214",2019,{"$f":"1160.5/3","v":{"v":386.8333333333333,"d":"386.83"}},"No","08/03/2019","K Madzivha","Less than R5000.00 and written off in the year of purchase"]
["ASA0191","Air Purifier","I","17/04/2018","New","No serial ID","S Molete","214",2019,527.56,"No","08/03/2019","K Madzivha","Less than R5000.00 and written off in the year of purchase"]
["ASA1083","Dell Ultra Sharp 24",{"$nulls":4},"S Molete","213",{"$nulls":3},"04/03/2023","K Madzivha","Less than R5000.00 and written off in the year of purchase"]
["ASA0058","Mini Fridge ",{"$nulls":4},"S Molete","213",{"$nulls":3},"04/03/2023","K Madzivha","Less than R5000.00 and written off in the year of purchase"]
[null,"Standing Heater","I","2018-05-24","New","No serial ID","S Ndamashe",null,null,{"$f":"1160.5/3","v":{"v":386.8333333333333,"d":"386.83"}},"No","08/03/2019","K Madzivha","Less than R5000.00 and written off in the year of purchase"]
["ASA0242","Garmin","I","2015/06/23","CSIR","No serial ID","S Silingo","PE C206",2019,{"v":3244.74,"d":"3,244.74"},"No","08/03/2019","K Madzivha","Old CSIR Asset brought over, deemed value"]
["ASA0243","CANON POWERSHOT CAMERA","I","2011-03-11","CSIR","No serial ID","S Silingo","PE C206",2019,{"v":4470.96,"d":"4,470.96"},"No","08/03/2019","K Madzivha","Old CSIR Asset brought over, on old asset register"]
["ASA0255","White Board ","I","2018-04-01","New","No serial ID","S Silingo","PE C206",2019,{"v":200,"d":"200.00"},"No","08/03/2019","K Madzivha","Old CSIR Asset brought over, deemed value"]
["ASA0256","White Board ","I","2018-04-01","New","No serial ID","S Silingo","PE C206",2019,{"v":200,"d":"200.00"},"No","08/03/2019","K Madzivha","Old CSIR Asset brought over, deemed value"]
["ASA0257","Microwave Samsung","I","2018-04-01","CSIR","No serial ID","S Silingo","PE C206",2019,{"v":550,"d":"550.00"},"No","08/03/2019","K Madzivha","Old CSIR Asset brought over, deemed value"]
["ASA0015","White Board","I","2019-02-21","New","No serial ID","S Skosana","205",2019,{"v":1965,"d":"1,965.00"},"No","08/03/2019","K Madzivha","New asset purchased"]
["ASA0017","Mirror","I","2003/07/09","CSIR","No serial ID","Small Board","204",2019,{"$f":"5598*0.25","v":{"v":1399.5,"d":"1,399.50"}},"No","08/03/2019","K Madzivha","Old CSIR Asset brought over, on old asset register"]
["ASA0081","Mirror","I","2003-07-09","CSIR","No serial ID","J Odhiambo","216",2019,{"v":1399.5,"d":"1,399.50"},"No","08/03/2019","K Madzivha","Old CSIR Asset brought over, deemed value"]
["ASA0085","White Board","I","2019-02-21","New","No serial ID","D Mamaregane","222",2019,{"v":1965,"d":"1,965.00"},"No","08/03/2019","K Madzivha","New asset purchased"]
["ASA0023","White Board","I","2019-02-21","New","No serial ID","T Zama","207",2019,{"v":1965,"d":"1,965.00"},"No","08/03/2019","K Madzivha","New asset purchased"]
["ASA0200","White Board","I","2019-02-21","New","No serial ID","Z Thusi","232",2019,{"v":1965,"d":"1,965.00"},"No","08/03/2019","K Madzivha","New asset purchased"]
["ASA1077","Dell Monitor 23''","I",{"$nulls":3},"M Mabuse",{"$nulls":5},"K Madzivha"]
["ASA1065","Dell Ultra Sharp 24","I",{"$nulls":3},"T Zama","207",{"$nulls":4},"K Madzivha"]
["ASA1066","Dell Docking station K16A","I",{"$nulls":3},"T Zama","207",{"$nulls":4},"K Madzivha"]
["ASA1052","Dell Ultra Sharp 24","I",{"$nulls":3},"L Makwedini","210",{"$nulls":4},"K Madzivha"]
["ASA0567","White Board","I",{"$nulls":3},"T Mtolo","214",{"$nulls":4},"K Madzivha"]
["ASA0060","Coat Hanger","I",{"$nulls":3},"J Odhiambo","216",{"$nulls":4},"K Madzivha"]
["ASA1252","Dell Docking station K16A","I",{"$nulls":3},"J Odhiambo","216",{"$nulls":4},"K Madzivha"]
["ASA1251","Dell Ultra Sharp 24","I",{"$nulls":3},"J Odhiambo","216",{"$nulls":4},"K Madzivha"]
["ASA1096","Dell Docking station K16A","I",{"$nulls":3},"L Mashigo","217",{"$nulls":4},"K Madzivha"]
["ASA1097","Dell Ultra Sharp 24","I",{"$nulls":3},"L Mashigo","217",{"$nulls":4},"K Madzivha"]
["ASA1006","Dell Ultra Sharp 24","I",{"$nulls":3},"L Mafolo","217",{"$nulls":4},"K Madzivha"]
["ASA1013","Dell Docking station K16A","I",{"$nulls":3},"D Mamaregane ","222",{"$nulls":4},"K Madzivha"]
["ASA1032","Dell Ultra Sharp 24","I",{"$nulls":3},"D Mamaregane ","222",{"$nulls":4},"K Madzivha"]
["ASA1007","Dell Monitor 23''","I",{"$nulls":3},"L Bhembe","243",{"$nulls":4},"K Madzivha"]
["ASA0570","White Board","I",{"$nulls":3},"L Bhembe","243",{"$nulls":4},"K Madzivha"]
["ASA1255","Dell Monitor 23''","I",{"$nulls":3},"Server",{"$nulls":5},"K Madzivha"]
["ASA1073","Dell Docking station K16A","I",{"$nulls":3},"Z Thusi","232",{"$nulls":4},"K Madzivha"]
["ASA1072","Dell Ultra Sharp 24","I",{"$nulls":3},"Z Thusi","232",{"$nulls":4},"K Madzivha"]
["ASA1019","Dell Ultra Sharp 24","I",{"$nulls":3},"Z Nkosi","233",{"$nulls":4},"K Madzivha"]
["ASA1022","Dell Ultra Sharp 24","I",{"$nulls":3},"E Moloto","233",{"$nulls":4},"K Madzivha"]
["ASA1051","Dell Ultra Sharp 24","I",{"$nulls":3},"S Silingo","233",{"$nulls":4},"K Madzivha"]
["ASA1010","Dell Ultra Sharp 24","I",{"$nulls":3},"A Tintelo","233",{"$nulls":4},"K Madzivha"]
["ASA0565","White Board ","I",{"$nulls":3},"S Ndamashe","231",{"$nulls":4},"K Madzivha"]
["ASA1025","Dell Ultra Sharp 24","I",{"$nulls":3},"L Magalo","234",{"$nulls":4},"K Madzivha"]

{"sheet":"Sheet2","index":3,"n_rows":11,"n_cols":2,"rows_kept":11,"hidden":true}
{"$rows_empty":10}
[null,"Rems Power Press"]